fUSD/lending_fUSD_20250716
["ID","MTS","AMOUNT","RATE_DAILY","PERIOD"]
[372457553,1752649864596,-151.0,0.00022054,7]
[372457554,1752649864606,-3357.75,0.00022054,2]
[372457555,1752649864616,-1219.21,0.00022054,2]
[372457556,1752649864626,-455.83,0.00022054,2]
[372457557,1752649864636,-876.48,0.00022054,2]
[372457558,1752649864647,-460.0,0.00022054,2]
[372457559,1752649864658,-1066.63,0.00022054,2]
[372457560,1752649864670,-460.0,0.00022054,2]
[372457561,1752649864681,-460.0,0.00022054,2]
[372457562,1752649864691,-460.0,0.00022054,2]
[372457563,1752649864701,-1257.33,0.00022054,2]
[372457564,1752649864711,-2551.64,0.00022054,2]
[372457565,1752649864722,-460.0,0.00022054,2]
[372457566,1752649864731,-187.39816495,0.00022054,2]
[372457567,1752649864741,-933.15,0.00022054,2]
[372457568,1752649864751,-453.41906057,0.00022054,2]
[372457569,1752649864761,-460.0,0.00022054,2]
[372457570,1752649864772,-1493.18,0.00022054,2]
[372457571,1752649864782,-3404.66,0.00022054,2]
[372457572,1752649864793,-1001.75,0.00022054,2]
[372457573,1752649864804,-151.0,0.00022054,7]
[372457574,1752649864815,-151.0,0.00022054,7]
[372457575,1752649864824,-460.0,0.00022054,2]
[372457576,1752649864834,-151.0,0.00022054,7]
[372457577,1752649864843,-645.68,0.00022054,2]
[372457578,1752649864853,-460.0,0.00022054,2]
[372457579,1752649864862,-460.0,0.00022054,2]
[372457580,1752649864874,-3961.49,0.00022054,2]
[372457581,1752649864884,-462.74039378,0.00022054,2]
[372457582,1752649864895,-460.0,0.00022054,2]
[372457583,1752649864905,-460.0,0.00022054,2]
[372457584,1752649864914,-3985.83,0.00022054,2]
[372457585,1752649864923,-471.9,0.00022054,2]
[372457586,1752649864933,-460.0,0.00022054,2]
[372457587,1752649864942,-460.0,0.00022054,2]
[372457588,1752649864952,-203.969566,0.00022054,2]
[372457589,1752649864962,-460.0,0.00022054,2]
[372457590,1752649864972,-654.55,0.00022054,2]
[372457591,1752649864982,-460.0,0.00022054,2]
[372457592,1752649864993,-1180.71,0.00022054,2]
[372457593,1752649865003,-460.0,0.00022054,2]
[372457594,1752649865012,-618.71,0.00022054,2]
[372457595,1752649865024,-460.0,0.00022054,2]
[372457596,1752649865035,-462.76437137,0.00022054,2]
[372457597,1752649865044,-330.09660172,0.00022054,2]
[372457598,1752649865054,-525.6860594,0.00022054,2]
[372457599,1752649865064,-460.0,0.00022054,2]
[372457600,1752649865075,-460.0,0.00022054,2]
[372457601,1752649865085,-1675.46,0.00022054,2]
[372457602,1752649865095,-1992.99,0.00022054,2]
[372457603,1752649865105,-460.0,0.00022054,2]
[372457604,1752649865115,-460.0,0.00022054,2]
[372457605,1752649865125,-1038.39,0.00022054,2]
[372457606,1752649865134,-151.379501,0.00022054,2]
[372457607,1752649865144,-577.65,0.00022054,2]
[372457608,1752649865154,-785.65,0.00022054,2]
[372457609,1752649865164,-460.0,0.00022054,2]
[372457610,1752649865173,-288.51981875,0.00022054,2]
[372457611,1752649865183,-460.0,0.00022054,2]
[372457612,1752649865192,-461.97131506,0.00022054,2]
[372457613,1752649865203,-460.0,0.00022054,2]
[372457614,1752649865212,-460.64,0.00022054,2]
[372457615,1752649865221,-543.93,0.00022054,2]
[372457616,1752649865231,-151.0,0.00022054,7]
[372457617,1752649865241,-460.0,0.00022054,2]
[372457618,1752649865250,-1314.19,0.00022054,2]
[372457619,1752649865260,-162.76666,0.00022054,7]
[372457620,1752649865271,-4143.88,0.00022054,2]
[372457621,1752649865280,-460.0,0.00022054,2]
[372457622,1752649865290,-460.0,0.00022054,2]
[372457623,1752649865299,-460.0,0.00022054,2]
[372457624,1752649865309,-477.79,0.00022054,2]
[372457625,1752649865318,-460.0,0.00022054,2]
[372457626,1752649865328,-460.0,0.00022054,2]
[372457627,1752649865337,-151.0,0.00022054,7]
[372457628,1752649865347,-151.0,0.00022054,7]
[372457629,1752649865356,-157.681486,0.00022054,7]
[372457630,1752649865366,-460.0,0.00022054,2]
[372457631,1752649865375,-460.0,0.00022054,2]
[372457632,1752649865384,-922.81,0.00022054,2]
[372457633,1752649865394,-821.08,0.00022054,2]
[372457634,1752649865403,-477.07059589,0.00022054,2]
[372457635,1752649865412,-1442.05,0.00022054,2]
[372457636,1752649865421,-727.68,0.00022054,2]
[372457637,1752649865431,-1687.82,0.00022054,2]
[372457638,1752649865440,-929.21,0.00022054,2]
[372457639,1752649865450,-460.0,0.00022054,2]
[372457640,1752649865460,-3054.41,0.00022054,2]
[372457641,1752649865470,-460.0,0.00022054,2]
[372457642,1752649865480,-1997.74,0.00022054,2]
[372457643,1752649865494,-460.0,0.00022054,2]
[372457644,1752649865504,-460.0,0.00022054,2]
[372457645,1752649865514,-464.72435657,0.00022054,2]
[372457646,1752649865524,-460.0,0.00022054,2]
[372457647,1752649865534,-1220.66,0.00022054,2]
[372457648,1752649865544,-460.0,0.00022054,2]
[372457649,1752649865554,-460.0,0.00022054,2]
[372457650,1752649865566,-461.76599591,0.00022054,2]
[372457651,1752649865578,-802.89,0.00022054,2]
[372457652,1752649865588,-1006.84,0.00022054,2]
[372457653,1752649865598,-2226.08,0.00022054,2]
[372457654,1752649865609,-460.0,0.00022054,2]
[372457655,1752649865620,-460.0,0.00022054,2]
[372457656,1752649865631,-473.3,0.00022054,2]
[372457657,1752649865644,-1412.19,0.00022054,2]
[372457658,1752649865654,-477.61211883,0.00022054,2]
[372457659,1752649865666,-460.0,0.00022054,2]
[372457660,1752649865677,-2561.5,0.00022054,2]
[372457661,1752649865687,-462.56377332,0.00022054,2]
[372457662,1752649865697,-726.26,0.00022054,2]
[372457663,1752649865707,-460.0,0.00022054,2]
[372457664,1752649865718,-835.88,0.00022054,2]
[372457665,1752649865729,-980.64,0.00022054,2]
[372457666,1752649865739,-520.0,0.00022054,2]
[372457667,1752649865748,-460.0,0.00022054,2]
[372457668,1752649865757,-460.0,0.00022054,2]
[372457669,1752649865768,-153.176439,0.00022054,7]
[372457670,1752649865778,-460.0,0.00022054,2]
[372457671,1752649865788,-1718.98,0.00022054,2]
[372457672,1752649865797,-1107.67,0.00022054,2]
[372457673,1752649865807,-460.0,0.00022054,2]
[372457674,1752649865816,-460.0,0.00022054,2]
[372457675,1752649865825,-460.0,0.00022054,2]
[372457676,1752649865836,-1412.55,0.00022054,2]
[372457677,1752649865845,-460.0,0.00022054,2]
[372457678,1752649865855,-460.0,0.00022054,2]
[372457679,1752649865864,-877.79,0.00022054,2]
[372457680,1752649865875,-2810.83,0.00022054,2]
[372457681,1752649865886,-460.0,0.00022054,2]
[372457682,1752649865895,-490.0,0.00022054,2]
[372457683,1752649865906,-1184.7,0.00022054,2]
[372457684,1752649865915,-508.9,0.00022054,2]
[372457685,1752649865925,-460.0,0.00022054,2]
[372457686,1752649865934,-485.83,0.00022054,2]
[372457687,1752649865942,-533.32,0.00022054,2]
[372457688,1752649865950,-462.80671132,0.00022054,2]
[372457689,1752649865959,-460.0,0.00022054,2]
[372457690,1752649865968,-488.34,0.00022054,2]
[372457691,1752649865977,-535.17788233,0.00022054,2]
[372457692,1752649865986,-484.52,0.00022054,2]
[372457693,1752649865996,-460.0,0.00022054,2]
[372457694,1752649866006,-636.93,0.00022054,2]
[372457695,1752649866016,-624.43,0.00022054,2]
[372457696,1752649866026,-460.0,0.00022054,2]
[372457697,1752649866036,-681.57,0.00022054,2]
[372457698,1752649866046,-812.88,0.00022054,2]
[372457699,1752649866056,-1367.61,0.00022054,2]
[372457700,1752649866066,-460.0,0.00022054,2]
[372457701,1752649866075,-460.0,0.00022054,2]
[372457702,1752649866085,-520.42,0.00022054,2]
[372457703,1752649866097,-460.0,0.00022054,2]
[372457704,1752649866109,-867.73,0.00022054,2]
[372457705,1752649866119,-460.0,0.00022054,2]
[372457706,1752649866128,-151.0,0.00022054,2]
[372457707,1752649866138,-460.0,0.00022054,2]
[372457708,1752649866148,-151.0,0.00022054,2]
[372457709,1752649866157,-460.0,0.00022054,2]
[372457710,1752649866167,-460.0,0.00022054,2]
[372457711,1752649866176,-2499.91,0.00022054,2]
[372457712,1752649866187,-1044.97,0.00022054,2]
[372457713,1752649866196,-1031.22,0.00022054,2]
[372457714,1752649866206,-460.0,0.00022054,2]
[372457715,1752649866215,-1184.2,0.00022054,2]
[372457716,1752649866225,-658.41,0.00022054,2]
[372457717,1752649866235,-631.23,0.00022054,2]
[372457718,1752649866244,-465.74855671,0.00022054,2]
[372457719,1752649866254,-531.48,0.00022054,2]
[372457720,1752649866264,-460.0,0.00022054,2]
[372457721,1752649866275,-1912.24,0.00022054,2]
[372457722,1752649866284,-460.0,0.00022054,2]
[372457723,1752649866293,-3367.08,0.00022054,2]
[372457724,1752649866303,-460.0,0.00022054,2]
[372457725,1752649866313,-460.0,0.00022054,2]
[372457726,1752649866322,-460.0,0.00022054,2]
[372457727,1752649866331,-1607.81,0.00022054,2]
[372457728,1752649866341,-460.0,0.00022054,2]
[372457729,1752649866351,-2289.61,0.00022054,2]
[372457730,1752649866361,-575.98241143,0.00022054,2]
[372457731,1752649866370,-2837.62,0.00022054,2]
[372457732,1752649866380,-460.0,0.00022054,2]
[372457733,1752649866390,-460.0,0.00022054,2]
[372457734,1752649866399,-460.0,0.00022054,2]
[372457735,1752649866409,-460.0,0.00022054,2]
[372457736,1752649866418,-150.0,0.00022054,2]
[372457737,1752649866428,-615.1,0.00022054,2]
[372457738,1752649866437,-460.0,0.00022054,2]
[372457739,1752649866447,-725.01,0.00022054,2]
[372457740,1752649866456,-497.84,0.00022054,2]
[372457741,1752649866466,-162.85646556,0.00022054,2]
[372457742,1752649866476,-460.0,0.00022054,2]
[372457743,1752649866489,-460.0,0.00022054,2]
[372457744,1752649866499,-1736.67,0.00022054,2]
[372457745,1752649866508,-838.66,0.00022054,2]
[372457746,1752649866519,-995.04,0.00022054,2]
[372457747,1752649866528,-1271.23,0.00022054,2]
[372457748,1752649866537,-1867.41,0.00022054,2]
[372457749,1752649866549,-460.0,0.00022054,2]
[372457750,1752649866561,-582.44,0.00022054,2]
[372457751,1752649866572,-885.3,0.00022054,2]
[372457752,1752649866583,-1582.99,0.00022054,2]
[372457753,1752649866593,-460.0,0.00022054,2]
[372457754,1752649866605,-701.89,0.00022054,2]
[372457755,1752649866614,-3376.03,0.00022054,2]
[372457756,1752649866623,-327.398153,0.00022054,7]
[372457757,1752649866633,-541.9,0.00022054,2]
[372457758,1752649866642,-1351.64,0.00022054,2]
[372457759,1752649866653,-327.398153,0.00022054,7]
[372457760,1752649866662,-327.398153,0.00022054,7]
[372457761,1752649866671,-1111.26,0.00022054,2]
[372457762,1752649866681,-460.0,0.00022054,2]
[372457763,1752649866690,-460.0,0.00022054,2]
[372457764,1752649866700,-806.42,0.00022054,2]
[372457765,1752649866709,-460.0,0.00022054,2]
[372457766,1752649866718,-460.0,0.00022054,2]
[372457767,1752649866727,-327.398153,0.00022054,7]
[372457768,1752649866737,-327.398153,0.00022054,7]
[372457769,1752649866746,-1458.76,0.00022054,2]
[372457770,1752649866755,-520.95,0.00022054,2]
[372457771,1752649866765,-327.398153,0.00022054,7]
[372457772,1752649866775,-1266.45,0.00022054,2]
[372457773,1752649866785,-460.0,0.00022054,2]
[372457774,1752649866794,-460.0,0.00022054,2]
[372457775,1752649866803,-460.0,0.00022054,2]
[372457776,1752649866813,-1949.71,0.00022054,2]
[372457777,1752649866822,-460.0,0.00022054,2]
[372457778,1752649866832,-460.0,0.00022054,2]
[372457779,1752649866841,-460.0,0.00022054,2]
[372457780,1752649866850,-579.71,0.00022054,2]
[372457781,1752649866860,-460.0,0.00022054,2]
[372457782,1752649866869,-460.0,0.00022054,2]
[372457783,1752649866879,-1379.61,0.00022054,2]
[372457784,1752649866888,-1203.43,0.00022054,2]
[372457785,1752649866898,-483.33847202,0.00022054,2]
[372457786,1752649866907,-1584.59,0.00022054,2]
[372457787,1752649866916,-460.0,0.00022054,2]
[372457788,1752649866925,-460.0,0.00022054,2]
[372457789,1752649866935,-2841.0,0.00022054,2]
[372457790,1752649866945,-512.65,0.00022054,2]
[372457791,1752649866954,-1702.87,0.00022054,2]
[372457792,1752649866963,-388.70770517,0.00022054,2]
[372457793,1752649866973,-460.0,0.00022054,2]
[372457794,1752649866983,-460.0,0.00022054,2]
[372457795,1752649866993,-460.0,0.00022054,2]
[372457796,1752649867002,-1570.23,0.00022054,2]
[372457797,1752649867013,-1702.14,0.00022054,2]
[372457798,1752649867023,-151.0,0.00022054,7]
[372457799,1752649867033,-460.0,0.00022054,2]
[372457800,1752649867043,-151.0,0.00022054,7]
[372457801,1752649867052,-460.0,0.00022054,2]
[372457802,1752649867061,-151.0,0.00022054,7]
[372457803,1752649867079,-460.0,0.00022054,2]
[372457804,1752649867095,-944.14,0.00022054,2]
[372457805,1752649867105,-1181.03,0.00022054,2]
[372457806,1752649867114,-460.0,0.00022054,2]
[372457807,1752649867124,-460.0,0.00022054,2]
[372457808,1752649867133,-1047.61,0.00022054,2]
[372457809,1752649867142,-1447.1,0.00022054,2]
[372457810,1752649867151,-460.0,0.00022054,2]
[372457811,1752649867161,-151.0,0.00022054,7]
[372457812,1752649867170,-2628.14,0.00022054,2]
[372457813,1752649867180,-151.0,0.00022054,7]
[372457814,1752649867189,-460.0,0.00022054,2]
[372457815,1752649867199,-460.0,0.00022054,2]
[372457816,1752649867209,-151.0,0.00022054,7]
[372457817,1752649867219,-1428.6,0.00022054,2]
[372457818,1752649867229,-460.0,0.00022054,2]
[372457819,1752649867239,-460.0,0.00022054,2]
[372457820,1752649867249,-460.0,0.00022054,2]
[372457821,1752649867260,-460.0,0.00022054,2]
[372457822,1752649867271,-2959.56,0.00022054,2]
[372457823,1752649867281,-493.69,0.00022054,2]
[372457824,1752649867291,-460.0,0.00022054,2]
[372457825,1752649867301,-460.0,0.00022054,2]
[372457826,1752649867311,-460.0,0.00022054,2]
[372457827,1752649867321,-1025.53,0.00022054,2]
[372457828,1752649867332,-460.0,0.00022054,2]
[372457829,1752649867342,-705.22,0.00022054,2]
[372457830,1752649867352,-460.0,0.00022054,2]
[372457831,1752649867364,-1178.85,0.00022054,2]
[372457832,1752649867375,-651.75,0.00022054,2]
[372457833,1752649867385,-687.93,0.00022054,2]
[372457834,1752649867396,-460.0,0.00022054,2]
[372457835,1752649867406,-460.0,0.00022054,2]
[372457836,1752649867539,-460.0,0.00022054,2]
[372457837,1752649867551,-979.84,0.00022054,2]
[372457838,1752649867560,-460.0,0.00022054,2]
[372457839,1752649867571,-460.0,0.00022054,2]
[372457840,1752649867583,-460.0,0.00022054,2]
[372457841,1752649867594,-579.15,0.00022054,2]
[372457842,1752649867604,-460.0,0.00022054,2]
[372457843,1752649867614,-1285.6,0.00022054,2]
[372457844,1752649867623,-460.0,0.00022054,2]
[372457845,1752649867633,-1704.77,0.00022054,2]
[372457846,1752649867642,-460.0,0.00022054,2]
[372457847,1752649867652,-460.0,0.00022054,2]
[372457848,1752649867662,-641.17,0.00022054,2]
[372457849,1752649867672,-460.0,0.00022054,2]
[372457850,1752649867681,-2355.83,0.00022054,2]
[372457851,1752649867691,-460.0,0.00022054,2]
[372457852,1752649867701,-465.13955296,0.00022054,2]
[372457853,1752649867711,-2336.9,0.00022054,2]
[372457854,1752649867725,-151.0,0.00022054,7]
[372457855,1752649867735,-460.0,0.00022054,2]
[372457856,1752649867744,-151.0,0.00022054,7]
[372457857,1752649867754,-151.0,0.00022054,7]
[372457858,1752649867764,-1878.0,0.00022054,2]
[372457859,1752649867775,-461.42462784,0.00022054,2]
[372457860,1752649867784,-460.0,0.00022054,2]
[372457861,1752649867794,-460.0,0.00022054,2]
[372457862,1752649867803,-460.0,0.00022054,2]
[372457863,1752649867813,-460.0,0.00022054,2]
[372457864,1752649867822,-460.0,0.00022054,2]
[372457865,1752649867833,-460.0,0.00022054,2]
[372457866,1752649867842,-460.0,0.00022054,2]
[372457867,1752649867852,-515.37488016,0.00022054,2]
[372457868,1752649867862,-460.0,0.00022054,2]
[372457869,1752649867871,-460.0,0.00022054,2]
[372457870,1752649867882,-1212.72,0.00022054,2]
[372457871,1752649867892,-248.05186195,0.00022054,2]
[372457872,1752649867902,-460.0,0.00022054,2]
[372457873,1752649867912,-1351.02,0.00022054,2]
[372457874,1752649867922,-2670.6,0.00022054,2]
[372457875,1752649867931,-460.0,0.00022054,2]
[372457876,1752649867941,-518.40450555,0.00022054,2]
[372457877,1752649867951,-151.0,0.00022054,7]
[372457878,1752649867961,-1669.16,0.00022054,2]
[372457879,1752649867971,-1510.25,0.00022054,2]
[372457880,1752649867981,-460.0,0.00022054,2]
[372457881,1752649867991,-460.0,0.00022054,2]
[372457882,1752649868000,-788.51,0.00022054,2]
[372457883,1752649868010,-1925.45,0.00022054,2]
[372457884,1752649868021,-460.0,0.00022054,2]
[372457885,1752649868031,-460.0,0.00022054,2]
[372457886,1752649868040,-151.0,0.00022054,7]
[372457887,1752649868050,-441.80905337,0.00022054,2]
[372457888,1752649868060,-460.0,0.00022054,2]
[372457889,1752649868070,-151.0,0.00022054,7]
[372457890,1752649868079,-151.0,0.00022054,7]
[372457891,1752649868089,-962.2,0.00022054,2]
[372457892,1752649868099,-460.0,0.00022054,2]
[372457893,1752649868108,-460.0,0.00022054,2]
[372457894,1752649868117,-151.0,0.00022054,7]
[372457895,1752649868127,-2656.57,0.00022054,2]
[372457896,1752649868137,-462.03131094,0.00022054,2]
[372457897,1752649868148,-597.95,0.00022054,2]
[372457898,1752649868158,-151.0,0.00022054,7]
[372457899,1752649868168,-151.0,0.00022054,7]
[372457900,1752649868178,-543.61,0.00022054,2]
[372457901,1752649868188,-151.0,0.00022054,7]
[372457902,1752649868197,-1635.02,0.00022054,2]
[372457903,1752649868207,-592.13934859,0.00022054,2]
[372457904,1752649868217,-526.3220976,0.00022054,2]
[372457905,1752649868227,-460.0,0.00022054,2]
[372457906,1752649868237,-2413.41,0.00022054,2]
[372457907,1752649868247,-496.40444924,0.00022054,2]
[372457908,1752649868257,-170.47,0.00022054,2]
[372457909,1752649868268,-752.52,0.00022054,2]
[372457910,1752649868278,-839.88,0.00022054,2]
[372457911,1752649868287,-661.636193,0.00022054,7]
[372457912,1752649868298,-661.636193,0.00022054,7]
[372457913,1752649868309,-661.636193,0.00022054,7]
[372457914,1752649868318,-460.0,0.00022054,2]
[372457915,1752649868328,-460.0,0.00022054,2]
[372457916,1752649868338,-792.63,0.00022054,2]
[372457917,1752649868347,-1477.34,0.00022054,2]
[372457918,1752649868357,-1383.22,0.00022054,2]
[372457919,1752649868367,-3447.86,0.00022054,2]
[372457920,1752649868378,-503.04338929,0.00022054,2]
[372457921,1752649868389,-1302.47,0.00022054,2]
[372457922,1752649868399,-2742.7,0.00022054,2]
[372457923,1752649868410,-1465.88,0.00022054,2]
[372457924,1752649868420,-150.6760615,0.00022054,2]
[372457925,1752649868429,-661.636193,0.00022054,7]
[372457926,1752649868439,-460.0,0.00022054,2]
[372457927,1752649868449,-661.636193,0.00022054,7]
[372457928,1752649868459,-661.636193,0.00022054,7]
[372457929,1752649868468,-460.0,0.00022054,2]
[372457930,1752649868480,-756.66,0.00022054,2]
[372457931,1752649868495,-460.0,0.00022054,2]
[372457932,1752649868504,-1361.38,0.00022054,2]
[372457933,1752649868514,-151.0,0.00022054,7]
[372457934,1752649868525,-151.0,0.00022054,7]
[372457935,1752649868535,-151.0,0.00022054,7]
[372457936,1752649868545,-460.0,0.00022054,2]
[372457937,1752649868555,-460.0,0.00022054,2]
[372457938,1752649868567,-460.0,0.00022054,2]
[372457939,1752649868577,-930.4,0.00022054,2]
[372457940,1752649868587,-944.52,0.00022054,2]
[372457941,1752649868596,-2005.27,0.00022054,2]
[372457942,1752649868606,-981.74,0.00022054,2]
[372457943,1752649868615,-460.0,0.00022054,2]
[372457944,1752649868625,-460.0,0.00022054,2]
[372457945,1752649868635,-460.0,0.00022054,2]
[372457946,1752649868645,-460.0,0.00022054,2]
[372457947,1752649868655,-460.0,0.00022054,2]
[372457948,1752649868666,-460.0,0.00022054,2]
[372457949,1752649868676,-564.04,0.00022054,2]
[372457950,1752649868686,-460.0,0.00022054,2]
[372457951,1752649868696,-460.0,0.00022054,2]
[372457952,1752649868706,-3395.16,0.00022054,2]
[372457953,1752649868716,-1137.33,0.00022054,2]
[372457954,1752649868726,-460.0,0.00022054,2]
[372457955,1752649868736,-3606.96,0.00022054,2]
[372457956,1752649868746,-2661.08,0.00022054,2]
[372457957,1752649868756,-183.29252206,0.00022054,2]
[372457958,1752649868768,-489.92,0.00022054,2]
[372457959,1752649868778,-1618.44,0.00022054,2]
[372457960,1752649868789,-605.24,0.00022054,2]
[372457961,1752649868799,-460.0,0.00022054,2]
[372457962,1752649868809,-460.0,0.00022054,2]
[372457963,1752649868819,-1247.84,0.00022054,2]
[372457964,1752649868829,-460.0,0.00022054,2]
[372457965,1752649868839,-298.101703,0.00022054,7]
[372457966,1752649868848,-460.0,0.00022054,2]
[372457967,1752649868859,-298.101703,0.00022054,7]
[372457968,1752649868870,-460.0,0.00022054,2]
[372457969,1752649868881,-460.0,0.00022054,2]
[372457970,1752649868892,-462.93034171,0.00022054,2]
[372457971,1752649868902,-6659.42,0.00022054,2]
[372457972,1752649868913,-460.0,0.00022054,2]
[372457973,1752649868922,-298.101703,0.00022054,7]
[372457974,1752649868932,-298.101703,0.00022054,7]
[372457975,1752649868942,-578.54,0.00022054,2]
[372457976,1752649868952,-460.0,0.00022054,2]
[372457977,1752649868962,-1387.18,0.00022054,2]
[372457978,1752649868972,-460.0,0.00022054,2]
[372457979,1752649868983,-3965.93,0.00022054,2]
[372457980,1752649868993,-460.0,0.00022054,2]
[372457981,1752649869003,-684.8,0.00022054,2]
[372457982,1752649869012,-3433.15,0.00022054,2]
[372457983,1752649869024,-952.92,0.00022054,2]
[372457984,1752649869033,-512.641004,0.00022054,7]
[372457985,1752649869043,-512.641004,0.00022054,7]
[372457986,1752649869054,-1578.22,0.00022054,2]
[372457987,1752649869065,-512.641004,0.00022054,7]
[372457988,1752649869075,-460.0,0.00022054,2]
[372457989,1752649869086,-460.0,0.00022054,2]
[372457990,1752649869096,-1038.17,0.00022054,2]
[372457991,1752649869107,-460.0,0.00022054,2]
[372457992,1752649869117,-872.24,0.00022054,2]
[372457993,1752649869127,-460.0,0.00022054,2]
[372457994,1752649869137,-536.14,0.00022054,2]
[372457995,1752649869146,-463.01975291,0.00022054,2]
[372457996,1752649869156,-512.641004,0.00022054,7]
[372457997,1752649869166,-512.641004,0.00022054,7]
[372457998,1752649869176,-512.641004,0.00022054,7]
[372457999,1752649869186,-3264.8,0.00022054,2]
[372458000,1752649869196,-827.42,0.00022054,2]
[372458001,1752649869206,-460.0,0.00022054,2]
[372458002,1752649869216,-581.44,0.00022054,2]
[372458003,1752649869226,-460.0,0.00022054,2]
[372458004,1752649869236,-485.7,0.00022054,2]
[372458005,1752649869246,-1776.457186,0.00022054,7]
[372458006,1752649869259,-1776.457186,0.00022054,7]
[372458007,1752649869270,-460.0,0.00022054,2]
[372458008,1752649869281,-460.0,0.00022054,2]
[372458009,1752649869292,-460.0,0.00022054,2]
[372458010,1752649869307,-460.0,0.00022054,2]
[372458011,1752649869317,-1284.41,0.00022054,2]
[372458012,1752649869327,-1113.71,0.00022054,2]
[372458013,1752649869337,-1372.77,0.00022054,2]
[372458014,1752649869348,-460.0,0.00022054,2]
[372458015,1752649869358,-1059.35,0.00022054,2]
[372458016,1752649869370,-486.62,0.00022054,2]
[372458017,1752649869381,-1350.62,0.00022054,2]
[372458018,1752649869391,-1025.86,0.00022054,2]
[372458019,1752649869403,-2304.61,0.00022054,2]
[372458020,1752649869414,-460.0,0.00022054,2]
[372458021,1752649869426,-1776.457186,0.00022054,7]
[372458022,1752649869436,-1776.457186,0.00022054,7]
[372458023,1752649869446,-460.0,0.00022054,2]
[372458024,1752649869455,-460.0,0.00022054,2]
[372458025,1752649869465,-461.43,0.00022054,2]
[372458026,1752649869476,-460.0,0.00022054,2]
[372458027,1752649869489,-460.0,0.00022054,2]
[372458028,1752649869503,-460.0,0.00022054,2]
[372458029,1752649869513,-489.18,0.00022054,2]
[372458030,1752649869524,-3134.0,0.00022054,2]
[372458031,1752649869535,-1482.8,0.00022054,2]
[372458032,1752649869545,-828.19,0.00022054,2]
[372458033,1752649869556,-606.98,0.00022054,2]
[372458034,1752649869568,-151.0,0.00022054,7]
[372458035,1752649869579,-962.58,0.00022054,2]
[372458036,1752649869590,-228.543456,0.00022054,7]
[372458037,1752649869599,-1105.09,0.00022054,2]
[372458038,1752649869609,-267.73806286,0.00022054,2]
[372458039,1752649869619,-460.0,0.00022054,2]
[372458040,1752649869629,-460.0,0.00022054,2]
[372458041,1752649869639,-2294.92,0.00022054,2]
[372458042,1752649869648,-460.0,0.00022054,2]
[372458043,1752649869658,-1114.57,0.00022054,2]
[372458044,1752649869668,-460.0,0.00022054,2]
[372458045,1752649869678,-2913.17,0.00022054,2]
[372458046,1752649869687,-477.12,0.00022054,2]
[372458047,1752649869697,-460.0,0.00022054,2]
[372458048,1752649869707,-460.0,0.00022054,2]
[372458049,1752649869717,-1373.47,0.00022054,2]
[372458050,1752649869727,-460.0,0.00022054,2]
[372458051,1752649869737,-460.0,0.00022054,2]
[372458052,1752649869747,-460.0,0.00022054,2]